bitfinex/quotes_SOLUSD_20250930
["timestamp","ask_amount","ask_price","bid_price","bid_amount"]
[1759252368738,2.86199688,205.9,205.86,34.34]
[1759252369152,1.69338162,205.89,205.86,39.19762608]
[1759252369538,135.19338162,205.89,205.86,39.19762608]
[1759252369728,133.5,205.89,205.86,39.88762608]
[1759252370636,133.5,205.88,205.86,39.88762608]
[1759252371948,133.5,205.88,205.87,0.69]
[1759252373258,133.5,205.88,205.87,5.5474343]
[1759252377460,2.35338162,205.92,205.87,5.5474343]
[1759252377653,0.66,205.91,205.88,34.34]
[1759252377835,133.5,205.9,205.88,34.34]
[1759252378145,133.5,205.9,205.88,39.19715496]
[1759252380343,134.16,205.9,205.88,39.19715496]
[1759252380858,2.35338162,205.89,205.82,25.74161501]
[1759252381159,133.5,205.89,205.83,52.00432395]
[1759252381359,134.16,205.89,205.83,52.00432395]
[1759252381552,134.16,205.89,205.83,66.73700008]
[1759252381753,134.16,205.89,205.83,54.5910544]
[1759252382353,136.80484664,205.89,205.83,54.5910544]
[1759252382555,141.00181578,205.89,205.83,20.2510544]
[1759252382746,2.64484664,205.86,205.82,4.85855201]
[1759252383068,0.66,205.85,205.83,34.34]
[1759252383266,133.5,205.84,205.83,34.34]
[1759252383454,0.66,205.9,205.83,49.35192275]
[1759252383656,0.66,205.92,205.84,14.25559401]
[1759252383955,0.66,205.92,205.85,35.0]
[1759252384171,20.8,205.94,205.86,14.25559401]
[1759252384172,2.64484664,205.94,205.86,14.25559401]
[1759252384341,3.30484664,205.95,205.87,17.66102005]
[1759252384542,2.64484664,205.93,205.88,34.98]
[1759252384737,3.30484664,205.92,205.89,34.32]
[1759252384964,0.48861526,205.96,205.89,34.98]
[1759252384965,2.64484664,205.93,205.89,34.98]
[1759252385144,2.64484664,205.94,205.9,0.66]
[1759252385466,3.30484664,205.94,205.9,0.66]
[1759252385663,2.64484664,205.94,205.89,34.32]
[1759252385972,2.64484664,205.94,205.91,0.66]
[1759252386150,2.64484664,205.94,205.92,34.32]
[1759252386942,42.90371652,205.98,205.93,0.66]
[1759252387246,42.90371652,205.98,205.92,39.17620686]
[1759252387247,2.64484664,205.96,205.92,39.17620686]
[1759252387569,2.64484664,205.93,205.89,21.46]
[1759252387758,3.30484664,205.93,205.9,34.32]
[1759252388148,2.64484664,205.93,205.9,34.98]
[1759252388563,2.64484664,205.93,205.9,39.83672656]
[1759252388748,2.64484664,205.94,205.9,39.17672656]
[1759252389065,2.64484664,205.95,205.91,0.66]
[1759252389270,2.64484664,205.95,205.92,0.66]
[1759252389459,2.64484664,205.95,205.93,34.32]
[1759252390041,42.41510126,205.98,205.94,0.66]
[1759252390240,45.0599479,205.98,205.94,0.66]
[1759252390463,45.0599479,205.98,205.96,4.85531171]
[1759252390644,45.0599479,205.98,205.96,39.17531171]
[1759252391457,45.0599479,205.98,205.96,34.32]
[1759252392159,2.64484664,205.97,205.96,34.32]
[1759252392359,3.30484664,205.97,205.96,34.32]
[1759252392571,8.64861579,205.97,205.96,34.32]
[1759252393169,8.64861579,205.97,205.91,5.51646215]
[1759252393370,2.64484664,205.95,205.92,34.32]
[1759252393745,2.64484664,205.95,205.92,34.98]
[1759252393978,2.64484664,205.95,205.92,34.32]
[1759252394157,2.64484664,205.95,205.92,34.98]
[1759252394552,2.64484664,205.96,205.93,0.66]
[1759252394765,2.64484664,205.96,205.93,5.51579959]
[1759252394973,42.41510126,205.98,205.94,0.66]
[1759252395148,2.64484664,205.97,205.95,34.98]
[1759252395347,42.41510126,205.98,205.96,0.66]
[1759252396680,42.41510126,205.98,205.96,4.85531171]
[1759252397176,45.0599479,205.98,205.95,34.32]
[1759252397386,2.64484664,205.97,205.95,34.32]
[1759252397563,45.0599479,205.98,205.95,39.87551518]
[1759252397875,42.41510126,205.98,205.96,0.7]
[1759252398479,42.41510126,205.98,205.97,0.7]
[1759252398880,2.64484664,206.01,205.97,5.55507598]
[1759252399087,3.32484664,206.01,205.98,34.32]
[1759252399255,2.64484664,206.0,205.98,34.32]
[1759252401280,2.64484664,206.0,205.98,39.17463994]
[1759252401581,136.82484664,206.02,205.98,39.87463994]
[1759252401782,136.14484664,206.02,205.98,39.87463994]
[1759252402083,133.5,206.02,205.99,0.7]
[1759252403385,133.5,206.02,206.0,4.85436893]
[1759252403562,133.5,206.02,206.01,35.02]
[1759252403768,0.1,206.03,206.01,35.02]
[1759252404079,0.1,206.03,206.01,34.3]
[1759252406370,0.1,206.03,206.01,39.15405746]
[1759252407185,133.5,206.02,206.01,39.15405746]
[1759252408108,133.5,206.02,206.01,39.87405746]
[1759252408272,133.5,206.02,206.01,39.15405746]
[1759252408596,133.5,206.02,206.01,39.87405746]
[1759252408991,0.1,206.03,206.02,13.87991715]
[1759252409286,0.1,206.03,206.02,14.59991715]
[1759252409481,0.1,206.03,206.02,13.87991715]
[1759252409690,0.1,206.03,206.02,14.59991715]
[1759252411494,0.1,206.03,206.02,33.91055751]
[1759252412794,0.1,206.03,206.02,68.19055751]
[1759252412992,0.1,206.03,206.02,33.91055751]
[1759252413195,0.1,206.03,206.02,68.19055751]
[1759252413777,0.1,206.03,206.02,33.91055751]
[1759252413992,0.1,206.03,206.02,68.19055751]
[1759252417478,0.1,206.03,206.02,32.90623437]
[1759252417805,0.79,206.03,206.02,19.31064036]
[1759252417977,0.1,206.03,206.02,53.59064036]
[1759252418178,0.1,206.03,206.02,54.31064036]
[1759252418595,0.1,206.03,206.02,67.90623437]
[1759252419602,0.1,206.03,206.02,68.19055751]
[1759252419902,0.1,206.03,206.02,70.13395602]
[1759252421712,0.1,206.04,206.03,0.28432314]
[1759252422012,0.1,206.04,206.03,1.00432314]
[1759252422305,0.1,206.04,206.03,35.39991715]
[1759252423910,0.1,206.04,206.03,40.25357923]
[1759252424912,0.1,206.04,206.03,39.24925609]
[1759252425214,0.1,206.04,206.03,59.91366208]
[1759252425388,0.1,206.04,206.03,73.50925609]
[1759252426413,0.1,206.04,206.03,73.79357923]
[1759252426712,0.1,206.04,206.03,74.51357923]
[1759252427101,0.79,206.04,206.03,73.79357923]
[1759252427307,0.1,206.04,206.03,73.79357923]
[1759252428504,0.79,206.04,206.02,14.45674269]
[1759252428701,134.19,206.03,206.02,4.85389119]
[1759252429013,134.19,206.03,206.02,55.06]
[1759252429904,0.69,206.03,206.02,39.11389767]
[1759252430105,0.69,206.03,206.01,4.85410265]
[1759252431919,0.69,206.0,205.98,34.26]
[1759252432306,0.69,206.0,205.98,39.11462287]
[1759252432502,2.64484664,206.01,205.95,35.11559401]
[1759252432708,2.64484664,205.98,205.96,34.26]
[1759252433022,3.35484664,205.97,205.96,34.26]
[1759252433527,3.35484664,205.97,205.9,37.86]
[1759252433709,2.64484664,205.92,205.91,34.26]
[1759252433914,3.35484664,205.92,205.91,34.26]
[1759252436128,8.21110149,205.92,205.91,34.26]
[1759252436507,3.35484664,205.92,205.91,34.26]
[1759252436809,0.48861526,205.94,205.91,34.26]
[1759252437006,3.35484664,205.93,205.91,34.26]
[1759252437813,3.35484664,205.92,205.91,34.26]
[1759252440632,3.35484664,205.92,205.91,34.28]
[1759252440833,2.64484664,205.92,205.91,34.28]
[1759252441012,2.64484664,205.95,205.91,34.97]
[1759252441212,2.64484664,205.97,205.92,0.69]
[1759252441624,2.64484664,205.94,205.91,34.28]
[1759252441807,2.64484664,205.93,205.91,34.28]
[1759252442012,2.64484664,205.93,205.91,39.13649069]
[1759252442214,2.64484664,205.95,205.91,39.82649069]
[1759252442413,2.64484664,205.96,205.92,0.69]
[1759252443535,3.35484664,205.96,205.92,0.69]
[1759252443832,2.64484664,205.94,205.91,39.13649069]
[1759252444031,3.35484664,205.94,205.91,39.13649069]
[1759252444242,2.4017993,205.94,205.91,39.13649069]
[1759252444431,1.6917993,205.94,205.91,39.13649069]
[1759252445322,1.6917993,205.93,205.91,39.13649069]
[1759252445521,1.6917993,205.92,205.91,34.28]
[1759252445725,135.9017993,205.92,205.91,34.28]
[1759252445921,135.1917993,205.92,205.91,34.28]
[1759252446128,133.5,205.92,205.91,34.28]
[1759252446437,135.9017993,205.92,205.91,34.28]
[1759252446615,135.9017993,205.92,205.9,34.28]
[1759252446820,2.4017993,205.91,205.9,34.28]
[1759252448942,1.6917993,205.91,205.9,34.28]
[1759252449142,2.4017993,205.91,205.9,34.28]
[1759252450054,1.6917993,205.91,205.9,34.28]
[1759252450348,4.85577944,205.95,205.9,34.28]
[1759252450349,1.6917993,205.95,205.9,34.97]
[1759252450530,2.4017993,205.96,205.91,0.69]
[1759252450730,0.71,205.95,205.91,0.69]
[1759252450929,1.6917993,205.92,205.9,34.28]
[1759252451256,1.6917993,205.92,205.9,39.13670385]
[1759252451423,1.6917993,205.93,205.9,34.28]
[1759252451759,1.6917993,205.91,205.9,34.28]
[1759252452446,2.4017993,205.91,205.9,34.28]
[1759252454342,7.74690525,205.91,205.9,34.28]
[1759252455152,7.74690525,205.91,205.88,34.28]
[1759252455354,1.6917993,205.89,205.88,34.28]
[1759252455735,1.6917993,205.9,205.88,34.97]
[1759252455942,1.6917993,205.9,205.88,34.28]
[1759252458057,2.3417993,205.89,205.88,34.28]
[1759252459666,7.68737701,205.89,205.88,34.28]
[1759252460355,7.68737701,205.89,205.86,34.28]
[1759252460538,1.6917993,205.87,205.86,34.28]
[1759252460735,135.1917993,205.88,205.86,34.28]
[1759252460955,139.12711694,205.88,205.86,34.28]
[1759252461163,135.1917993,205.87,205.85,34.28]
[1759252461344,135.1917993,205.87,205.8,13.59559401]
[1759252461345,135.68041456,205.86,205.81,14.67137223]
[1759252461544,133.98861526,205.85,205.81,14.67137223]
[1759252461737,1.6917993,205.82,205.78,14.59321415]
[1759252461938,1.6917993,205.81,205.78,15.27321415]
[1759252462133,1.6917993,205.82,205.78,0.68]
[1759252462360,1.6917993,205.81,205.78,0.68]
[1759252462538,1.6917993,205.81,205.79,0.68]
[1759252462738,1.6917993,205.81,205.8,34.28]
[1759252463557,1.6917993,205.82,205.8,34.28]
[1759252464056,1.6917993,205.82,205.8,34.95]
[1759252464256,1.6917993,205.82,205.8,34.28]
[1759252464559,0.48861526,205.84,205.8,39.13906939]
[1759252464858,1.6917993,205.83,205.8,39.80906939]
[1759252465769,133.5,205.85,205.8,39.80906939]
[1759252465770,133.5,205.85,205.81,0.67]
[1759252466458,133.5,205.85,205.82,0.67]
[1759252466657,1.6917993,205.83,205.81,34.28]
[1759252466861,133.5,205.82,205.81,34.28]
[1759252467067,135.1917993,205.82,205.81,34.28]
[1759252468348,133.5,205.82,205.81,34.28]
[1759252468670,133.5,205.82,205.81,39.13885039]
[1759252469166,133.5,205.82,205.81,39.80885039]
[1759252470857,133.5,205.82,205.81,39.13885039]
[1759252471973,133.5,205.82,205.81,39.80885039]
[1759252472153,1.6917993,205.88,205.82,13.59559401]
[1759252472347,4.85646643,205.92,205.83,34.95]
[1759252472348,133.5,205.89,205.83,34.95]
[1759252472550,1.6917993,205.94,205.85,0.28432314]
[1759252472768,2.4017993,205.95,205.87,13.59559401]
[1759252472973,2.4017993,205.95,205.89,13.59559401]
[1759252473170,1.6917993,205.96,205.9,34.95]
[1759252473352,1.6917993,205.96,205.91,0.67]
[1759252473869,0.48861526,206.0,205.91,0.67]
[1759252474054,0.71,206.01,205.92,13.59559401]
[1759252474280,1.6917993,206.0,205.94,13.59559401]
[1759252474461,1.6917993,206.0,205.95,0.67]
[1759252474660,1.6917993,206.01,205.96,34.28]
[1759252474865,1.6917993,206.01,205.98,4.85484027]
[1759252475066,1.6917993,206.01,205.99,34.28]
[1759252475379,2.4017993,206.0,205.99,34.28]
[1759252475758,1.6917993,206.0,205.99,34.28]
[1759252477469,2.4017993,206.0,205.99,34.28]
[1759252477962,1.6917993,206.01,205.99,34.28]
[1759252479272,1.6917993,206.01,205.99,39.13456852]
[1759252479474,1.6917993,206.02,205.99,39.80456852]
[1759252479665,1.6917993,206.02,206.0,0.67]
[1759252479980,1.6917993,206.03,206.0,0.67]
[1759252480159,1.6917993,206.02,206.0,0.67]
[1759252480359,1.6917993,206.02,205.99,39.13456852]
[1759252480577,1.6917993,206.02,205.99,39.80456852]
[1759252480768,0.81,206.04,205.99,39.80456852]
[1759252481069,1.6917993,206.02,205.99,39.80456852]
[1759252482066,1.6917993,206.01,205.99,39.80456852]
[1759252482566,1.6917993,206.02,205.99,39.80456852]
[1759252484175,1.6917993,206.02,205.99,34.28]
[1759252484374,1.6917993,206.01,205.99,34.28]
[1759252485261,1.6917993,206.01,205.99,39.1346001]
[1759252485587,0.1,206.04,206.0,0.67]
[1759252485791,0.1,206.04,206.01,34.26]
[1759252486085,0.1,206.04,206.02,0.67]
[1759252486288,0.1,206.04,206.03,0.67]
[1759252488171,0.1,206.04,206.03,19.11925609]
[1759252489189,0.1,206.04,206.03,18.44925609]
[1759252489884,0.1,206.04,206.03,47.85559401]
[1759252490089,1.7917993,206.04,206.03,34.26]
[1759252490477,0.1,206.04,206.03,34.26]
[1759252490791,0.1,206.04,206.03,39.11366208]
[1759252491264,0.1,206.04,206.03,39.78366208]
[1759252492879,0.1,206.04,206.03,39.11366208]
[1759252493992,0.1,206.04,206.03,39.78366208]
[1759252494297,0.1,206.04,206.03,53.37925609]
[1759252497882,0.1,206.04,206.03,52.70925609]
[1759252498075,0.1,206.04,206.03,53.37925609]
[1759252499787,0.1,206.04,206.03,52.70925609]
[1759252499998,0.1,206.04,206.03,53.37925609]
[1759252500192,0.1,206.04,206.03,48.52559401]
[1759252500394,0.1,206.04,205.99,21.08432314]
[1759252500395,14.58103827,206.04,205.92,0.67]
[1759252500600,1.6917993,205.97,205.93,34.24]
[1759252500997,1.6917993,205.99,205.94,0.67]
[1759252501304,2.3717993,205.99,205.95,34.24]
[1759252501723,4.95342651,206.04,205.98,20.8]
[1759252501724,0.1,206.04,205.98,20.8]
[1759252502001,0.1,206.04,205.96,14.26559401]
[1759252502002,0.1,206.04,206.0,13.59559401]
[1759252502178,0.1,206.04,206.01,39.15408211]
[1759252502378,2.3717993,206.03,206.02,34.3]
[1759252502580,2.3717993,206.03,206.0,4.85413337]
[1759252502778,1.6917993,206.01,205.96,4.85531171]
[1759252502979,2.3717993,206.01,205.97,34.3]
[1759252503188,2.3717993,206.0,205.97,34.3]
[1759252503387,1.6917993,206.0,205.96,13.59559401]
[1759252503687,1.6917993,205.97,205.94,4.8557753]
[1759252503995,1.6917993,205.97,205.95,34.34]
[1759252504188,2.3717993,205.96,205.94,4.8557753]
[1759252504380,0.68,205.96,205.95,34.32]
[1759252504585,1.16861526,205.98,205.95,34.32]
[1759252504782,1.16861526,206.01,205.95,34.32]
[1759252504982,0.68,206.01,205.95,34.99]
[1759252505398,0.68,206.0,205.95,34.32]
[1759252505596,2.3717993,205.99,205.95,34.32]
[1759252505801,2.3717993,205.99,205.96,4.85531171]
[1759252506002,2.3717993,205.99,205.97,34.36]
[1759252506304,3.32218968,205.99,205.97,34.36]
[1759252506802,0.68,205.99,205.97,34.36]
[1759252507207,2.64218968,206.0,205.97,39.21505193]
[1759252507600,133.5,205.99,205.98,14.26559401]
[1759252507907,133.5,205.99,205.98,48.90991715]
[1759252508495,0.1,206.04,205.99,13.59559401]
[1759252508707,0.1,206.04,206.0,34.36]
[1759252508889,0.1,206.04,206.0,35.03]
[1759252509788,0.78,206.04,206.02,34.36]
[1759252509986,0.1,206.04,206.02,34.36]
[1759252510989,0.78,206.04,206.02,34.36]
[1759252511189,2.74218968,206.04,206.02,34.36]
[1759252512315,3.42218968,206.04,206.02,34.36]
[1759252512611,0.1,206.04,206.03,0.67]
[1759252512999,0.1,206.04,206.03,14.26559401]
[1759252513200,0.1,206.04,206.02,39.21380613]
[1759252514708,0.68,206.03,205.98,20.8]
[1759252514915,2.74218968,206.04,205.99,39.86460289]
[1759252515101,2.74218968,206.04,205.99,39.19460289]
[1759252515421,0.1,206.04,206.01,4.85413329]
[1759252515616,0.1,206.04,206.02,34.99]
[1759252515819,0.1,206.04,206.02,34.32]
[1759252519132,3.33218968,206.03,205.98,20.8]
[1759252519340,2.64218968,205.99,205.95,13.59559401]
[1759252519629,3.33218968,205.99,205.96,34.32]
[1759252519824,2.64218968,206.0,205.96,34.32]
[1759252520015,0.69,205.99,205.96,34.32]
[1759252520534,2.64218968,206.0,205.96,34.32]
[1759252520719,3.33218968,206.0,205.96,39.17530763]
[1759252521116,0.69,206.0,205.96,34.32]
[1759252521425,2.64218968,206.02,205.97,0.72]
[1759252521615,0.69,206.01,205.98,34.32]
[1759252521936,0.69,206.0,205.98,34.32]
[1759252522127,3.33218968,206.0,205.98,34.32]
[1759252522440,3.33218968,205.99,205.98,34.32]
[1759252523654,2.64218968,206.0,205.98,34.32]
[1759252523955,1.14861526,206.02,205.98,34.32]
[1759252524254,3.30218968,206.01,205.98,34.32]
[1759252524554,3.30218968,206.0,205.98,34.32]
[1759252525129,2.64218968,205.99,205.98,34.32]
[1759252525327,3.30218968,205.99,205.98,34.32]
[1759252525523,2.64218968,205.99,205.98,34.32]
[1759252525838,2.64218968,206.0,205.98,34.32]
[1759252526424,2.64218968,206.02,205.99,0.7]
[1759252526650,0.1,206.04,206.0,35.0]
[1759252526887,133.5,206.03,206.01,0.7]
[1759252527166,133.5,206.03,206.02,39.87389767]
[1759252528356,133.5,206.03,206.02,39.17389767]
[1759252528559,133.5,206.03,206.02,39.87389767]
[1759252530549,136.80033353,206.03,206.02,34.32]
[1759252530782,136.80033353,206.03,205.92,0.7]
[1759252530783,133.5,206.02,205.92,0.7]
[1759252531087,2.64033353,205.94,205.89,0.7]
[1759252531299,2.64033353,205.93,205.9,39.8766891]
[1759252531668,2.64033353,205.94,205.91,0.7]
[1759252531985,2.64033353,205.95,205.92,34.32]
[1759252532366,2.64033353,205.93,205.92,34.32]
[1759252532565,2.64033353,205.93,205.88,15.40430414]
[1759252532782,2.64033353,205.92,205.89,35.02]
[1759252533366,2.64033353,205.92,205.89,39.87692671]
[1759252533889,3.78894879,205.94,205.89,39.87692671]
[1759252534087,1.14861526,205.97,205.9,0.7]
[1759252535696,3.30033353,205.94,205.91,34.32]
[1759252535868,2.64033353,205.92,205.91,34.32]
[1759252536076,133.5,205.91,205.84,13.59559401]
[1759252536290,136.14033353,205.9,205.85,35.02]
[1759252536481,133.5,205.9,205.86,3.34033353]
[1759252536677,133.5,205.9,205.87,2.64033353]
[1759252536877,133.5,205.9,205.86,13.59559401]
[1759252537082,134.16,205.9,205.86,13.59559401]
[1759252537272,136.80033353,205.9,205.86,13.59559401]
[1759252537678,136.80033353,205.9,205.86,18.4532197]
[1759252538484,136.80033353,205.9,205.85,34.32]
[1759252538485,0.66,205.89,205.85,34.32]
[1759252538892,3.30033353,205.89,205.85,34.32]
[1759252539379,136.80033353,205.88,205.85,34.32]
[1759252539775,0.66,205.87,205.85,34.32]
[1759252539976,136.14033353,205.88,205.85,34.32]
[1759252540297,133.5,205.88,205.85,39.17789773]
[1759252540797,133.5,205.88,205.87,2.64033353]
[1759252540990,133.5,205.88,205.86,13.59559401]
[1759252541504,133.5,205.88,205.85,39.17789773]
[1759252541907,133.5,205.88,205.85,34.32]
[1759252542080,134.16,205.88,205.85,34.32]
[1759252542293,133.5,205.88,205.85,39.17777434]
[1759252542485,133.5,205.88,205.86,0.7]
[1759252542891,133.5,205.88,205.87,34.32]
[1759252543104,133.5,205.88,205.87,35.02]
[1759252543299,133.5,205.88,205.87,34.32]
[1759252544098,133.5,205.88,205.87,39.1774343]
[1759252544405,133.5,205.88,205.87,39.8774343]
[1759252544805,133.5,205.88,205.87,39.1774343]
[1759252546413,133.5,205.88,205.87,56.11336184]
[1759252546612,133.5,205.88,205.87,53.75735145]
[1759252546910,133.5,205.88,205.87,56.39768498]
[1759252549922,133.5,205.88,205.87,55.41336184]
[1759252551116,133.5,205.88,205.87,56.11336184]
[1759252552413,133.5,205.88,205.87,55.41336184]
[1759252553205,133.5,205.88,205.87,56.36768498]
[1759252554322,81.10994572,205.88,205.87,56.36768498]
[1759252557831,81.10994572,205.88,205.87,55.69768498]
[1759252558013,81.10994572,205.88,205.87,53.05735145]
[1759252558217,81.10994572,205.88,205.87,52.77302831]
[1759252558721,0.72,205.88,205.87,39.1774343]
[1759252560828,5.34442579,205.94,205.87,39.1774343]
[1759252561031,0.72,205.9,205.87,39.1774343]
[1759252561227,2.64033353,205.92,205.87,39.1774343]
[1759252561443,0.72,205.89,205.87,39.1774343]
[1759252561736,2.64033353,205.92,205.87,39.1774343]
[1759252561918,0.72,205.89,205.87,39.1774343]
[1759252562614,2.64033353,205.92,205.87,39.1774343]
[1759252562938,0.72,205.91,205.87,39.1774343]
[1759252563137,0.72,205.9,205.87,39.1774343]
[1759252563432,2.64033353,205.88,205.8,2.64033353]
[1759252563641,2.64033353,205.85,205.81,68.67559401]
[1759252563842,0.72,205.84,205.81,47.87559401]
[1759252564042,0.72,205.83,205.81,34.28]
[1759252564613,0.72,205.83,205.81,39.13864651]
[1759252564817,0.72,205.86,205.81,39.80864651]
[1759252565016,0.72,205.85,205.81,39.13864651]
[1759252565312,2.64033353,205.86,205.81,39.13864651]
[1759252565313,0.72,205.84,205.81,39.13864651]
[1759252566235,0.48861526,205.9,205.83,2.64033353]
[1759252566426,133.5,205.87,205.86,2.64033353]
[1759252566631,0.72,205.93,205.87,4.8574343]
[1759252566826,0.72,205.93,205.89,2.64033353]
[1759252567140,0.72,205.97,205.92,2.64033353]
[1759252567341,0.72,205.96,205.93,36.92033353]
[1759252567647,0.72,205.96,205.93,34.28]
[1759252567847,0.72,205.95,205.93,34.28]
[1759252568022,0.48861526,205.97,205.93,34.28]
[1759252568226,0.72,205.96,205.93,39.13581967]
[1759252568631,2.89992004,205.98,205.93,39.13581967]
[1759252568824,2.41130478,205.98,205.93,39.13581967]
[1759252569155,0.48861526,206.02,205.96,1.69130478]
[1759252569465,0.72,206.02,205.97,35.99130478]
[1759252569747,1.20861526,206.01,205.97,34.3]
[1759252569934,0.72,206.0,205.96,34.32]
[1759252570126,2.89992004,205.99,205.96,34.32]
[1759252570330,0.72,205.98,205.96,34.32]
[1759252570529,1.69130478,205.98,205.96,34.32]
[1759252570758,0.72,205.97,205.96,34.32]
[1759252571059,2.41130478,205.97,205.94,34.3]
[1759252571239,0.72,205.96,205.94,34.3]
[1759252571439,5.57439231,206.0,205.94,34.3]
[1759252571656,2.89992004,205.99,205.94,34.3]
[1759252571841,0.72,205.98,205.94,34.3]
[1759252572150,0.72,205.97,205.94,34.3]
[1759252572766,0.72,205.96,205.94,34.3]
[1759252573064,1.69130478,205.97,205.94,34.3]
[1759252573274,0.72,205.96,205.94,34.3]
[1759252573439,1.69133827,205.97,205.94,34.3]
[1759252573640,2.41133827,205.97,205.94,34.3]
[1759252573845,2.41133827,205.97,205.94,39.1557065]
[1759252574056,0.72,205.97,205.94,39.1557065]
[1759252574258,0.48861526,206.01,205.94,39.8257065]
[1759252574442,0.72,206.0,205.94,39.1557065]
[1759252574642,0.48861526,205.99,205.94,39.1557065]
[1759252574880,1.20861526,205.99,205.94,39.1557065]
[1759252575046,0.72,205.98,205.94,34.3]
[1759252576479,133.5,205.97,205.94,34.3]
[1759252579571,133.5,205.97,205.94,39.15577924]
[1759252579764,133.5,205.97,205.94,39.83577924]
[1759252580087,133.5,205.97,205.94,39.15577924]
[1759252580385,133.5,205.97,205.94,39.83577924]
[1759252580768,133.5,205.97,205.94,39.15577924]
[1759252580968,133.5,205.97,205.95,0.68]
[1759252581190,0.71,206.02,205.96,34.96]
[1759252581373,0.48861526,206.01,205.96,34.96]
[1759252581576,1.19861526,206.01,205.96,34.96]
[1759252581872,0.71,206.0,205.96,34.28]
[1759252582181,0.71,205.99,205.96,34.28]
[1759252583189,12.23358341,206.04,205.96,34.28]
[1759252583190,0.1,206.04,205.97,35.04559401]
[1759252583367,0.1,206.04,205.99,13.59559401]
[1759252583569,0.71,206.03,205.96,4.85527099]
[1759252583785,2.88995353,206.02,205.95,4.85554223]
[1759252583982,2.40133827,206.01,205.95,4.85554223]
[1759252584292,1.19861526,206.0,205.96,34.38]
[1759252584595,0.71,205.99,205.96,34.38]
[1759252584891,0.48861526,205.98,205.96,34.38]
[1759252585086,1.19861526,205.98,205.96,34.38]
[1759252585969,0.71,205.97,205.89,25.73746947]
[1759252586169,4.85554746,205.95,205.9,34.38]
[1759252586378,0.48861526,205.94,205.9,34.38]
[1759252586586,0.48861526,205.96,205.9,35.03]
[1759252586783,6.05400883,205.96,205.9,35.03]
[1759252588192,0.48861526,205.96,205.91,5.50649069]
[1759252588378,6.05397345,205.96,205.91,5.50649069]
[1759252588995,1.19861526,205.96,205.91,5.50649069]
[1759252590370,1.19861526,205.96,205.91,4.85649069]
[1759252590570,1.19861526,205.96,205.91,5.50649069]
[1759252590771,1.19861526,205.96,205.91,4.85649069]
[1759252590976,1.19861526,205.96,205.92,0.65]
[1759252591176,5.34350647,205.98,205.93,34.4]
[1759252591401,0.71,205.97,205.93,34.4]
[1759252591592,0.48861526,205.98,205.94,0.65]
[1759252592801,0.48861526,205.99,205.94,0.65]
[1759252592996,1.19861526,205.99,205.94,0.65]
[1759252593204,0.71,205.98,205.93,34.4]
[1759252593503,1.19861526,205.97,205.93,34.4]
[1759252594517,4.85554746,205.95,205.93,34.4]
[1759252594798,5.34416272,205.95,205.93,34.4]
[1759252595203,6.05416272,205.95,205.93,34.4]
[1759252595410,0.71,205.94,205.89,0.65]
[1759252595580,5.34416272,205.95,205.89,34.36]
[1759252595581,1.19861526,205.93,205.89,34.36]
[1759252595981,0.48861526,205.93,205.89,35.01]
[1759252596391,1.19861526,205.93,205.89,35.01]
[1759252596902,0.71,205.92,205.84,0.65]
[1759252597206,133.98861526,205.91,205.85,34.36]
[1759252597404,133.5,205.91,205.85,35.01]
[1759252597603,0.48861526,205.9,205.85,35.01]
[1759252597909,4.85696245,205.89,205.85,34.36]
[1759252598080,4.85696245,205.89,205.85,35.01]
[1759252598788,5.56696245,205.89,205.85,34.36]